fUSD/lending_fUSD_20251210
["ID","MTS","AMOUNT","RATE_DAILY","PERIOD"]
[398107666,1765374666397,-500.0,0.000349,2]
[398107667,1765374666406,-500.0,0.000349,2]
[398107668,1765374666416,-500.0,0.000349,2]
[398107669,1765374666427,-500.0,0.000349,2]
[398107670,1765374666436,-500.0,0.000349,2]
[398107671,1765374666446,-500.0,0.000349,2]
[398107672,1765374666455,-500.0,0.000349,2]
[398107673,1765374666465,-500.0,0.000349,2]
[398107674,1765374666475,-500.0,0.000349,2]
[398107675,1765374666485,-500.0,0.000349,2]
[398107676,1765374666495,-500.0,0.000349,2]
[398107677,1765374666504,-500.0,0.000349,2]
[398107678,1765374666514,-500.0,0.000349,2]
[398107679,1765374666523,-500.0,0.000349,2]
[398107680,1765374666533,-500.0,0.000349,2]
[398107681,1765374666543,-500.0,0.000349,2]
[398107682,1765374666552,-500.0,0.000349,2]
[398107683,1765374666562,-500.0,0.000349,2]
[398107684,1765374666571,-500.0,0.000349,2]
[398107685,1765374666581,-500.0,0.000349,2]
[398107686,1765374666591,-500.0,0.000349,2]
[398107687,1765374666600,-500.0,0.000349,2]
[398107688,1765374666609,-500.0,0.000349,2]
[398107689,1765374666619,-500.0,0.000349,2]
[398107690,1765374666628,-500.0,0.000349,2]
[398107691,1765374666638,-500.0,0.000349,2]
[398107692,1765374666647,-500.0,0.000349,2]
[398107693,1765374666656,-500.0,0.000349,2]
[398107694,1765374666666,-500.0,0.000349,2]
[398107695,1765374666677,-500.0,0.000349,2]
[398107696,1765374666686,-500.0,0.000349,2]
[398107697,1765374666696,-500.0,0.000349,2]
[398107698,1765374666706,-500.0,0.000349,2]
[398107699,1765374666715,-500.0,0.000349,2]
[398107700,1765374666725,-500.0,0.000349,2]
[398107701,1765374666735,-500.0,0.000349,2]
[398107702,1765374666744,-500.0,0.000349,2]
[398107703,1765374666754,-500.0,0.000349,2]
[398107704,1765374666763,-500.0,0.000349,2]
[398107705,1765374666773,-500.0,0.000349,2]
[398107706,1765374666782,-500.0,0.000349,2]
[398107707,1765374666791,-500.0,0.000349,2]
[398107708,1765374666801,-500.0,0.000349,2]
[398107709,1765374666810,-500.0,0.000349,2]
[398107710,1765374666820,-500.0,0.000349,2]
[398107711,1765374666830,-500.0,0.000349,2]
[398107712,1765374666840,-500.0,0.000349,2]
[398107713,1765374666850,-500.0,0.000349,2]
[398107714,1765374666859,-500.0,0.000349,2]
[398107715,1765374666869,-500.0,0.000349,2]
[398107716,1765374666879,-500.0,0.000349,2]
[398107717,1765374666889,-500.0,0.000349,2]
[398107718,1765374666898,-500.0,0.000349,2]
[398107719,1765374666907,-500.0,0.000349,2]
[398107720,1765374666917,-500.0,0.000349,2]
[398107721,1765374666927,-500.0,0.000349,2]
[398107722,1765374666937,-500.0,0.000349,2]
[398107723,1765374666946,-500.0,0.000349,2]
[398107724,1765374666956,-500.0,0.000349,2]
[398107725,1765374666966,-500.0,0.000349,2]
[398107726,1765374666976,-500.0,0.000349,2]
[398107727,1765374666986,-500.0,0.000349,2]
[398107728,1765374666996,-500.0,0.000349,2]
[398107729,1765374667006,-500.0,0.000349,2]
[398107730,1765374667016,-500.0,0.000349,2]
[398107731,1765374667026,-500.0,0.000349,2]
[398107732,1765374667035,-500.0,0.000349,2]
[398107733,1765374667046,-500.0,0.000349,2]
[398107734,1765374667061,-500.0,0.000349,2]
[398107735,1765374667071,-500.0,0.000349,2]
[398107736,1765374667082,-500.0,0.000349,2]
[398107737,1765374667094,-500.0,0.000349,2]
[398107738,1765374667104,-500.0,0.000349,2]
[398107739,1765374667113,-500.0,0.000349,2]
[398107740,1765374667123,-500.0,0.000349,2]
[398107741,1765374667133,-500.0,0.000349,2]
[398107742,1765374667143,-500.0,0.000349,2]
[398107743,1765374667153,-500.0,0.000349,2]
[398107744,1765374667164,-500.0,0.000349,2]
[398107745,1765374667174,-500.0,0.000349,2]
[398107746,1765374667183,-500.0,0.000349,2]
[398107747,1765374667193,-635.0,0.000349,2]
[398107748,1765374667202,-500.0,0.000349,2]
[398107749,1765374667211,-500.0,0.000349,2]
[398107750,1765374667221,-500.0,0.000349,2]
[398107751,1765374667230,-500.0,0.000349,2]
[398107752,1765374667240,-500.0,0.000349,2]
[398107753,1765374667249,-500.0,0.000349,2]
[398107754,1765374667258,-500.0,0.000349,2]
[398107755,1765374667268,-500.0,0.000349,2]
[398107756,1765374667277,-500.0,0.000349,2]
[398107757,1765374667287,-500.0,0.000349,2]
[398107758,1765374667296,-500.0,0.000349,2]
[398107759,1765374667305,-500.0,0.000349,2]
[398107760,1765374667315,-500.0,0.000349,2]
[398107761,1765374667324,-500.0,0.000349,2]
[398107762,1765374667334,-500.0,0.000349,2]
[398107763,1765374667344,-500.0,0.000349,2]
[398107764,1765374667354,-500.0,0.000349,2]
[398107765,1765374667364,-500.0,0.000349,2]
[398107766,1765374667374,-500.0,0.000349,2]
[398107767,1765374667384,-500.0,0.000349,2]
[398107768,1765374667394,-500.0,0.000349,2]
[398107769,1765374667403,-500.0,0.000349,2]
[398107770,1765374667413,-500.0,0.000349,2]
[398107771,1765374667422,-500.0,0.000349,2]
[398107772,1765374667431,-500.0,0.000349,2]
[398107773,1765374667441,-500.0,0.000349,2]
[398107774,1765374667451,-500.0,0.000349,2]
[398107775,1765374667461,-500.0,0.000349,2]
[398107776,1765374667470,-500.0,0.000349,2]
[398107777,1765374667480,-500.0,0.000349,2]
[398107778,1765374667490,-500.0,0.000349,2]
[398107779,1765374667500,-500.0,0.000349,2]
[398107780,1765374667509,-500.0,0.000349,2]
[398107781,1765374667519,-500.0,0.000349,2]
[398107782,1765374667528,-500.0,0.000349,2]
[398107783,1765374667538,-500.0,0.000349,2]
[398107784,1765374667547,-500.0,0.000349,2]
[398107785,1765374667556,-500.0,0.000349,2]
[398107786,1765374667565,-948.0,0.000349,2]
[398107787,1765374667574,-500.0,0.000349,2]
[398107788,1765374667583,-500.0,0.000349,2]
[398107789,1765374667592,-500.0,0.000349,2]
[398107790,1765374667601,-500.0,0.000349,2]
[398107791,1765374667611,-500.0,0.000349,2]
[398107792,1765374667620,-500.0,0.000349,2]
[398107793,1765374667629,-500.0,0.000349,2]
[398107794,1765374667639,-500.0,0.000349,2]
[398107795,1765374667648,-500.0,0.000349,2]
[398107796,1765374667658,-500.0,0.000349,2]
[398107797,1765374667667,-500.0,0.000349,2]
[398107798,1765374667676,-500.0,0.000349,2]
[398107799,1765374667686,-500.0,0.000349,2]
[398107800,1765374667696,-500.0,0.000349,2]
[398107801,1765374667705,-500.0,0.000349,2]
[398107802,1765374667714,-500.0,0.000349,2]
[398107803,1765374667723,-500.0,0.000349,2]
[398107804,1765374667733,-504.0,0.000349,2]
[398107805,1765374667742,-500.0,0.000349,2]
[398107806,1765374667751,-500.0,0.000349,2]
[398107807,1765374667761,-500.0,0.000349,2]
[398107808,1765374667770,-500.0,0.000349,2]
[398107809,1765374667780,-500.0,0.000349,2]
[398107810,1765374667789,-500.0,0.000349,2]
[398107811,1765374667799,-500.0,0.000349,2]
[398107812,1765374667808,-500.0,0.000349,2]
[398107813,1765374667817,-500.0,0.000349,2]
[398107814,1765374667827,-500.0,0.000349,2]
[398107815,1765374667836,-500.0,0.000349,2]
[398107816,1765374667844,-500.0,0.000349,2]
[398107817,1765374667854,-150.0,0.00035,2]
[398107818,1765374667863,-5000.0,0.00035,90]
[398107819,1765374667872,-5000.0,0.00035,90]
[398107820,1765374667882,-5000.0,0.00035,90]
[398107821,1765374667891,-151.75658647,0.00035,30]
[398107822,1765374667900,-5520.27644266,0.00035466,2]
[398107823,1765374668060,-506.13216482,0.00035466,2]
[398107826,1765374773291,166.410001,0.00013698,2]
[398107827,1765374773496,166.410001,0.00013698,2]
[398107828,1765374773688,166.410001,0.00013698,2]
[398107829,1765374773986,166.410001,0.00013698,2]
[398107830,1765374774312,166.410001,0.00013698,2]
[398107831,1765374779374,160.077719,0.00013698,2]
[398107833,1765374786085,151.437524,0.00013698,2]
[398107834,1765374786473,151.437524,0.00013698,2]
[398107835,1765374786761,151.437524,0.00013698,2]
[398107836,1765374787054,151.437524,0.00013698,2]
[398107837,1765374787373,151.437524,0.00013698,2]
[398107838,1765374787670,151.437524,0.00013698,2]
[398107839,1765374788094,151.437524,0.00013698,2]
[398107840,1765374788473,151.437524,0.00013698,2]
[398107841,1765374789151,151.437524,0.00013698,2]
[398107842,1765374789459,151.437524,0.00013698,2]
[398107843,1765374790913,170.671184,0.00013698,2]
[398107844,1765374791225,170.671184,0.00013698,2]
[398107845,1765374791522,170.671184,0.00013698,2]
[398107846,1765374791818,170.671184,0.00013698,2]
[398107851,1765374961687,565.63,0.00013699,2]
[398107885,1765375832065,-250.0,0.00017,2]
[398107886,1765375832076,-294.0,0.00017,2]
[398107887,1765375832086,-150.0,0.00019999,2]
[398107888,1765375832097,-636.0,0.00019999,2]
[398107889,1765375832111,-300.0,0.00019999,2]
[398107890,1765375832121,-500.0,0.0002,2]
[398107891,1765375832131,-128.37083201,0.0002,2]
[398107892,1765375832209,-371.62916799,0.0002,2]
[398107893,1765375832219,-469.66927485,0.0002,2]
[398107897,1765375832472,-30.33072515,0.0002,2]
[398107898,1765375832482,-244.64777145,0.0002,2]
[398107899,1765375832495,-255.35222855,0.0002,2]
[398107900,1765375832504,-500.0,0.0002,2]
[398107901,1765375832514,-500.0,0.0002,2]
[398107902,1765375832524,-500.0,0.0002,2]
[398107903,1765375832538,-500.0,0.0002,2]
[398107904,1765375832548,-500.0,0.0002,2]
[398107905,1765375832558,-500.0,0.0002,2]
[398107906,1765375832568,-500.0,0.0002,2]
[398107907,1765375832579,-500.0,0.0002,2]
[398107908,1765375832589,-500.0,0.0002,2]
[398107909,1765375832599,-500.0,0.0002,2]
[398107910,1765375832613,-500.0,0.0002,2]
[398107911,1765375832628,-500.0,0.0002,2]
[398107912,1765375832638,-1000.0,0.0002,2]
[398107913,1765375832647,-533.06,0.0002,2]
[398107914,1765375832657,-529.89,0.0002,2]
[398107915,1765375832668,-526.62,0.0002,2]
[398107916,1765375832678,-533.18,0.0002,2]
[398107917,1765375832687,-151.44,0.0002,2]
[398107918,1765375832697,-529.49,0.0002,2]
[398107919,1765375832706,-150.04,0.0002,2]
[398107920,1765375832716,-152.7,0.0002,2]
[398107921,1765375832725,-520.36,0.0002,2]
[398107922,1765375832735,-533.98,0.0002,2]
[398107923,1765375832744,-527.93,0.0002,2]
[398107924,1765375832753,-517.07,0.0002,2]
[398107925,1765375832762,-516.54,0.0002,2]
[398107926,1765375832771,-531.29,0.0002,2]
[398107927,1765375832782,-524.31,0.0002,2]
[398107928,1765375832791,-530.49,0.0002,2]
[398107929,1765375832800,-531.62,0.0002,2]
[398107930,1765375832810,-565.63,0.00020187,2]
[398107931,1765375832820,-150.0,0.000214,7]
[398107932,1765375832829,-500.0,0.00021918,4]
[398107933,1765375832838,-500.0,0.00021918,4]
[398107934,1765375832847,-500.0,0.00021918,4]
[398107935,1765375832857,-500.0,0.00021918,4]
[398107936,1765375832866,-500.0,0.00021918,4]
[398107937,1765375832876,-500.0,0.00021918,4]
[398107938,1765375832886,-500.0,0.00021918,4]
[398107939,1765375832896,-500.0,0.00021918,4]
[398107940,1765375832905,-500.0,0.00021918,4]
[398107941,1765375832915,-500.0,0.00021918,4]
[398107942,1765375832924,-535.5,0.0002267,2]
[398107943,1765375832934,-166.66,0.00023017,30]
[398107944,1765375832944,-150.513,0.00023047,2]
[398107945,1765375832954,-185.037,0.00023047,2]
[398107946,1765375832962,-150.494,0.00023047,2]
[398107947,1765375832972,-9999.99,0.00023047,2]
[398107948,1765375832981,-521.48,0.00023172,2]
[398107949,1765375832990,-519.61,0.00023289,2]
[398107950,1765375833000,-166.66,0.00023502,30]
[398107951,1765375833009,-533.38,0.00023509,2]
[398107952,1765375833019,-515.37,0.00023945,2]
[398107953,1765375833027,-166.66,0.00023987,30]
[398107954,1765375833037,-150.0,0.0002409,2]
[398107955,1765375833045,-150.0,0.0002409,2]
[398107956,1765375833055,-150.0,0.0002409,2]
[398107957,1765375833064,-150.0,0.0002409,2]
[398107958,1765375833073,-150.0,0.0002409,2]
[398107959,1765375833082,-150.0,0.0002409,2]
[398107960,1765375833091,-150.0,0.0002409,2]
[398107961,1765375833100,-151.14485449,0.0002409,2]
[398107962,1765375833108,-165.40022359,0.0002409,2]
[398107963,1765375833118,-150.0,0.0002409,2]
[398107964,1765375833127,-150.0,0.00024096,2]
[398107965,1765375833136,-150.124,0.00024096,2]
[398107966,1765375833146,-151.0,0.00024096,2]
[398107967,1765375833155,-6516.0,0.00024096,2]
[398107968,1765375833165,-182.7,0.00024308,2]
[398107969,1765375833174,-718.72,0.0002443,2]
[398107970,1765375833190,-500.0,0.00024436,2]
[398107971,1765375833202,-7000.47,0.00024447,2]
[398107972,1765375833212,-166.66,0.00024471,30]
[398107973,1765375833221,-150.0,0.00024626,4]
[398107974,1765375833230,-4587.63794394,0.00024644,2]
[398107975,1765375833248,-1013.08682692,0.00024644,2]
[398107976,1765375838652,-3821.61716989,0.00024644,2]
[398107977,1765375838665,-476.81295156,0.00024644,2]
[398107978,1765375838678,-177.88510769,0.00024644,2]
[398107979,1765375838688,-153.0,0.00024658,2]
[398107980,1765375838698,-147.49380522,0.00024658,2]
[398107981,1765375838710,-5.50619478,0.00024658,2]
[398107982,1765375838719,-153.0,0.00024658,2]
[398107983,1765375838729,-153.0,0.00024658,2]
[398107984,1765375838739,-40.37499057,0.00024658,2]
[398107985,1765375838755,-112.62500943,0.00024658,2]
[398107986,1765375838765,-153.0,0.00024658,2]
[398107987,1765375838774,-153.0,0.00024658,2]
[398107988,1765375838784,-153.0,0.00024658,2]
[398107989,1765375838794,-153.0,0.00024658,2]
[398107990,1765375838804,-153.0,0.00024658,2]
[398107991,1765375838814,-153.0,0.00024658,2]
[398107992,1765375838823,-153.0,0.00024658,2]
[398107993,1765375838833,-153.0,0.00024658,2]
[398107994,1765375838843,-153.0,0.00024658,2]
[398107995,1765375838852,-153.0,0.00024658,2]
[398107997,1765375838862,-200.0,0.00024661,2]
[398107999,1765375838871,-500.0,0.00024697,2]
[398108001,1765375838881,-566.29936022,0.00024697,2]
[398108003,1765375838891,-500.0,0.00024697,2]
[398108005,1765375838902,-500.0,0.00024697,2]
[398108007,1765375838911,-501.23715344,0.00024697,2]
[398108009,1765375838921,-500.0,0.00024697,2]
[398108010,1765375838932,-500.0,0.00024697,2]
[398108041,1765375839233,-210.92,0.00024697,2]
[398108043,1765375839243,-150.0,0.0002476,4]
[398108045,1765375839254,-500.0,0.00024799,2]
[398108047,1765375839264,-500.0,0.00024941,2]
[398108049,1765375839273,-166.66,0.00024956,30]
[398108051,1765375839282,-500.0,0.00024961,2]
[398108053,1765375839291,-500.0,0.00024962,2]
[398108054,1765375839302,-500.0,0.00024971,2]
[398108056,1765375839312,-500.0,0.00024971,2]
[398108058,1765375839321,-500.0,0.00024971,2]
[398108060,1765375839331,-210.92,0.00024971,2]
[398108062,1765375839340,-496.515747,0.00024972,2]
[398108064,1765375839350,-527.55,0.00024973,2]
[398108066,1765375839360,-150.0,0.00024983,4]
[398108068,1765375839369,-322.6107,0.00025099,2]
[398108069,1765375839379,-287.61899177,0.00025099,2]
[398108071,1765375839388,-150.0,0.00025161,4]
[398108073,1765375839397,-500.0,0.00025245,2]
[398108074,1765375839406,-500.0,0.00025245,2]
[398108075,1765375839416,-500.0,0.00025245,2]
[398108076,1765375839425,-150.0,0.00025429,4]
[398108077,1765375839436,-150.0,0.00025429,4]
[398108078,1765375839446,-150.0,0.00025429,4]
[398108079,1765375839455,-166.66,0.0002544,30]
[398108080,1765375839465,-500.0,0.00025519,2]
[398108081,1765375839474,-500.0,0.00025519,2]
[398108082,1765375839484,-500.0,0.00025519,2]
[398108083,1765375839493,-150.0,0.00025519,2]
[398108084,1765375839502,-2066.35426324,0.00025519,2]
[398108085,1765375839512,-150.0,0.00025519,2]
[398108086,1765375839522,-3145.10587161,0.00025519,2]
[398108087,1765375839535,-150.0,0.00025519,2]
[398108088,1765375839545,-1785.16353115,0.00025519,2]
[398108089,1765375839555,-150.0,0.00025519,2]
[398108090,1765375839565,-2820.17261226,0.00025519,2]
[398108091,1765375839574,-150.0,0.00025696,4]
[398108092,1765375839585,-503.76110755,0.00025793,2]
[398108093,1765375839594,-500.0,0.00025793,2]
[398108094,1765375839604,-500.0,0.00025793,2]
[398108095,1765375839614,-150.0,0.00025875,4]
[398108096,1765375839624,-150.0,0.00026047,2]
[398108097,1765375839634,-500.0,0.00026067,2]
[398108098,1765375839643,-500.0,0.00026067,2]
[398108099,1765375839653,-150.0,0.00026098,4]
[398108100,1765375839663,-150.0,0.00026232,4]
[398108101,1765375839672,-500.0,0.00026341,2]
[398108102,1765375839681,-500.0,0.00026341,2]
[398108103,1765375839691,-821.145,0.00026341,13]
[398108104,1765375839701,-500.0,0.00026615,2]
[398108105,1765375839710,-500.0,0.00026615,2]
[398108106,1765375839720,-565.63,0.00026676,2]
[398108107,1765375839730,-173.9979446,0.00026677,2]
[398108108,1765375839739,-1000.0,0.00026678,2]
[398108109,1765375839749,-2500.0,0.00026679,2]
[398108110,1765375839758,-977.57332026,0.00026688,2]
[398108111,1765375839768,-1725.6103,0.00026689,2]
[398108112,1765375839779,-977.57332025,0.00026739,2]
[398108113,1765375839789,-514.21,0.00026757,3]
[398108114,1765375839798,-171.39,0.00026759,3]
[398108115,1765375839808,-164.18,0.00026759,2]
[398108116,1765375839817,-150.0,0.00026767,4]
[398108117,1765375839827,-150.0,0.00026767,4]
[398108118,1765375839836,-182.63607796,0.00026767,4]
[398108119,1765375839846,-150.0,0.00026767,4]
[398108120,1765375839856,-150.0,0.00026767,4]
[398108121,1765375839865,-217.39322156,0.00026767,4]
[398108122,1765375839875,-7565.91423418,0.00026768,3]
[398108123,1765375839884,-18914.7855855,0.00026769,3]
[398108124,1765375839894,-105876.28484112,0.00026769,3]
[398108125,1765375840050,-8785.48185222,0.00026769,3]
[398108130,1765375840352,-3078.56071231,0.00026769,3]
[398108131,1765375840364,-2066.30720119,0.00026769,3]
[398108132,1765375840375,-2181.63349884,0.00026769,3]
[398108133,1765375840717,-150.0,0.000214,7]
[398108134,1765375840727,-36895.93081232,0.00026769,3]
[398108135,1765375840737,-200509.132714,0.00026769,3]
[398108136,1765375840747,-500.0,0.00026777,2]
[398108137,1765375840756,-500.0,0.00026777,2]
[398108138,1765375840766,-500.0,0.00026777,2]
[398108140,1765375840775,-500.0,0.00026777,2]
[398108142,1765375840784,-500.0,0.00026777,2]
[398108143,1765375840794,-500.0,0.00026777,2]
[398108144,1765375840804,-500.0,0.00026777,2]
[398108145,1765375840813,-500.0,0.00026777,2]
[398108146,1765375840822,-500.0,0.00026777,2]
[398108148,1765375840832,-550.57360598,0.00026777,2]
[398108150,1765375840841,-178.53010279,0.00026777,2]
[398108152,1765375840850,-500.0,0.00026777,2]
[398108154,1765375840859,-500.0,0.00026777,2]
[398108155,1765375840869,-500.0,0.00026777,2]
[398108157,1765375840878,-500.0,0.00026777,2]
[398108159,1765375840888,-500.0,0.00026777,2]
[398108160,1765375840897,-500.0,0.00026777,2]
[398108161,1765375840906,-246.88006931,0.00026777,2]
[398108162,1765375840915,-500.0,0.00026777,2]
[398108163,1765375840925,-500.0,0.00026777,2]
[398108164,1765375840935,-500.0,0.00026777,2]
[398108165,1765375840945,-500.0,0.00026777,2]
[398108166,1765375840955,-500.0,0.00026777,2]
[398108167,1765375840964,-500.0,0.00026777,2]
[398108168,1765375840974,-500.0,0.00026777,2]
[398108169,1765375840984,-500.0,0.00026777,2]
[398108170,1765375840993,-500.0,0.00026777,2]
[398108171,1765375841003,-500.0,0.00026777,2]
[398108172,1765375841012,-507.52,0.00026777,2]
[398108173,1765375841022,-500.0,0.00026777,2]
[398108174,1765375841031,-589.46509972,0.00026777,2]
[398108175,1765375841040,-500.0,0.00026777,2]
[398108176,1765375841049,-500.0,0.00026777,2]
[398108177,1765375841059,-500.0,0.00026777,2]
[398108178,1765375841068,-500.0,0.00026777,2]
[398108179,1765375841078,-621.9803886,0.00026777,2]
[398108180,1765375841087,-500.0,0.00026777,2]
[398108181,1765375841097,-500.0,0.00026777,2]
[398108182,1765375841106,-500.0,0.00026777,2]
[398108183,1765375841115,-500.0,0.00026777,2]
[398108184,1765375841125,-500.0,0.00026777,2]
[398108185,1765375841135,-500.0,0.00026777,2]
[398108186,1765375841145,-500.0,0.00026777,2]
[398108187,1765375841156,-500.0,0.00026777,2]
[398108188,1765375841165,-500.0,0.00026777,2]
[398108189,1765375841174,-580.95845877,0.00026777,2]
[398108190,1765375841183,-500.0,0.00026777,2]
[398108191,1765375841193,-500.0,0.00026777,2]
[398108192,1765375841202,-500.0,0.00026777,2]
[398108193,1765375841212,-585.71186847,0.00026777,2]
[398108194,1765375841221,-500.0,0.00026777,2]
[398108195,1765375841230,-500.0,0.00026777,2]
[398108196,1765375841240,-500.0,0.00026777,2]
[398108197,1765375841250,-500.0,0.00026777,2]
[398108198,1765375841260,-190.25486189,0.00026777,2]
[398108199,1765375841270,-466.02084075,0.00026777,2]
[398108200,1765375841279,-500.0,0.00026777,2]
[398108201,1765375841288,-631.92290798,0.00026777,2]
[398108202,1765375841299,-500.0,0.00026777,2]
[398108203,1765375841308,-275.45570378,0.00026777,2]
[398108204,1765375841318,-500.0,0.00026777,2]
[398108205,1765375841328,-500.0,0.00026777,2]
[398108206,1765375841338,-500.0,0.00026778,2]
[398108207,1765375841347,-500.0,0.00026778,2]
[398108208,1765375841356,-500.0,0.00026778,2]
[398108209,1765375841365,-500.0,0.00026778,2]
[398108210,1765375841375,-500.0,0.00026778,2]
[398108211,1765375841383,-500.0,0.00026778,2]
[398108212,1765375841392,-500.0,0.00026778,2]
[398108213,1765375841402,-496.84136931,0.00026778,2]
[398108214,1765375841410,-500.0,0.00026778,2]
[398108215,1765375841419,-500.0,0.00026778,2]
[398108216,1765375841428,-500.0,0.00026778,2]
[398108217,1765375841437,-500.0,0.00026778,2]
[398108218,1765375841447,-500.0,0.00026778,2]
[398108219,1765375841456,-530.99127449,0.00026778,2]
[398108220,1765375841465,-500.0,0.00026778,2]
[398108221,1765375841474,-500.0,0.00026778,2]
[398108222,1765375841483,-500.0,0.00026778,2]
[398108223,1765375841492,-500.0,0.00026778,2]
[398108224,1765375841501,-500.0,0.00026778,2]
[398108225,1765375841511,-500.0,0.00026778,2]
[398108226,1765375841520,-500.0,0.00026778,2]
[398108227,1765375841530,-531.31,0.00026778,2]
[398108228,1765375841543,-500.0,0.00026778,2]
[398108229,1765375841553,-500.0,0.00026778,2]
[398108230,1765375841563,-500.0,0.00026778,2]
[398108231,1765375841572,-500.0,0.00026778,2]
[398108232,1765375841583,-500.0,0.00026778,2]
[398108233,1765375841592,-275.65018327,0.00026778,2]
[398108234,1765375841603,-500.82,0.00026778,2]
[398108235,1765375841614,-500.0,0.00026778,2]
[398108236,1765375841623,-500.0,0.00026778,2]
[398108237,1765375841634,-500.0,0.00026778,2]
[398108238,1765375841645,-500.0,0.00026778,2]
[398108239,1765375841655,-500.0,0.00026778,2]
[398108240,1765375841665,-500.0,0.00026778,2]
[398108241,1765375841675,-500.0,0.00026778,2]
[398108242,1765375841685,-500.0,0.00026778,2]
[398108243,1765375841695,-362.53654197,0.00026778,2]
[398108244,1765375841704,-500.0,0.00026778,2]
[398108245,1765375841714,-480.03052287,0.00026778,2]
[398108246,1765375841723,-500.0,0.00026778,2]
[398108247,1765375841733,-500.0,0.00026778,2]
[398108248,1765375841742,-500.0,0.00026778,2]
[398108249,1765375841752,-373.10317154,0.00026778,2]
[398108250,1765375841761,-500.0,0.00026778,2]
[398108251,1765375841770,-500.0,0.00026778,2]
[398108252,1765375841779,-500.0,0.00026778,2]
[398108253,1765375841789,-500.0,0.00026778,2]
[398108254,1765375841799,-500.0,0.00026778,2]
[398108255,1765375841808,-500.0,0.00026778,2]
[398108256,1765375841818,-500.0,0.00026778,2]
[398108257,1765375841828,-500.0,0.00026778,2]
[398108258,1765375841837,-500.0,0.00026778,2]
[398108259,1765375841847,-500.0,0.00026778,2]
[398108260,1765375841856,-500.0,0.00026778,2]
[398108261,1765375841866,-500.0,0.00026778,2]
[398108262,1765375841875,-500.0,0.00026778,2]
[398108263,1765375841887,-380.1234834,0.00026778,2]
[398108264,1765375841897,-500.0,0.00026778,2]
[398108265,1765375841906,-500.0,0.00026778,2]
[398108266,1765375841915,-317.22656551,0.00026778,2]
[398108267,1765375841924,-500.0,0.00026778,2]
[398108268,1765375841934,-500.0,0.00026778,2]
[398108269,1765375841943,-509.16879112,0.00026778,2]
[398108270,1765375841953,-500.0,0.00026778,2]
[398108271,1765375841963,-500.0,0.00026778,2]
[398108272,1765375841972,-500.0,0.00026778,2]